{"text_format":"1","workbook":"xlsx","n_sheets":4,"sheets":["Vispārīga informācija","Plānotie pasākumi","Iesniedzamie dokumenti EE","Sheet2 Slēpt"],"not_rendered":{"charts":0,"images":7,"macros":1,"external_links":0,"defined_names":5,"comments":0,"pivot_tables":0},"unopened":[],"bounds":{"document_bytes":16777216,"sheet_cells":100000,"rows_first":2000,"rows_last":500,"rows_between":2000,"halvings":0,"cell_chars":16384,"cell_head_chars":4096},"cells_cut":0,"cells_raw":0,"read":"whole","date_system":"1900"}

{"sheet":"Vispārīga informācija","index":0,"n_rows":49,"n_cols":10,"rows_kept":49,"cut":false,"hidden":false,"merged":[[11,8,12,8],[11,9,11,12],[12,2,12,6],[12,9,12,12],[1,2,1,12],[4,1,4,12],[8,2,8,6],[8,9,8,12],[9,2,9,6],[9,9,9,12],[26,4,26,5],[13,1,13,12],[16,1,16,12],[18,4,18,5],[18,7,18,9],[19,4,19,5],[19,7,19,9],[21,4,21,5],[21,7,21,9],[22,4,22,5],[22,7,22,9],[25,4,25,5],[44,4,44,8],[33,4,33,5],[33,7,33,9],[34,4,34,5],[34,7,34,9],[36,4,36,8],[37,4,37,8],[40,4,40,5],[40,7,40,9],[41,4,41,5],[41,7,41,9],[43,4,43,8]]}
[]
[null,null,"PROJEKTA ENERGORESURSU IETAUPĪJUMA APRĒĶINS\n1.2.1.2.i.1. pasākumā \"Energoefektivitātes paaugstināšana uzņēmējdarbībā (ietverot pāreju uz atjaunojamo energoresursu tehnoloģiju izmantošanu siltumapgādē)\""]
[]
[]
[null,"ENERGOEFEKTIVITĀTES PAAUGSTINĀŠANAS PASĀKUMI"]
[]
[null,"Vispārīga informācija"]
[]
[null,"Komersants"]
[null,null,"nosaukums",null,null,null,null,null,null,"reģ.nr."]
[]
[null,null,null,null,null,null,null,null,"Pieprasītā kapitāla atlaide*"]
[null,null,null,null,null,null,null,null,null,"EUR"]
[null,"* Kapitāla atlaidi var pieprasīt līdz 30 % apmērā no projekta kopējām izmaksām, neieskaitot PVN, bet ne vairāk kā 1 950 000 euro saistīto uzņēmumu grupai, nepārsniedzot pieļaujamo atbalsta intensitāti saskaņā ar VGAR vai pieejamo de minimis limita apmēru."]
[null,"Informācijas sagatavotājs"]
[]
[null,"Pārskatu izstrādā un paraksta:\na) \tAkreditēts uzņēmumu energoauditors, juridiska persona (aktuāls saraksts pieejams Būvniecības Informācijas sistēmā: https://bis.gov.lv/bisp/lv/energy_auditors)\nb) \tSertificēts speciālists ēku energoefektivitātes jomā (aktuāls saraksts pieejams Būvniecības Informācijas sistēmā: https://bis.gov.lv/bisp/lv/expert_certificates)\nc) \tKomersanta darbinieks – Energopārvaldnieks, ja Komersantam ir spēkā esošs ISO 50001 sertifikāts, kas apliecina, ka uzņēmumā ieviesta Energopārvaldības sistēma atbilstoši ISO 50001 standartam. "]
[]
[]
[null,"vārds",null,null,"uzvārds",null,null,"serifikāta Nr."]
[]
[]
[null,"tālr.",null,null,"e-pasts",null,null,"izglītības dokuments"]
[null,"VAI"]
[]
[]
[null,"uzņēmumu energoauditora nosaukums",null,null,"reģ.nr."]
[]
[]
[null,"novērtējuma sagatavošanas datums"]
[]
[null,"Komersanta paraksttiesīgā amatpersona, kas apliecina pārskatā sniegtās informācijas pareizību (visiem pasākumiem)"]
[]
[]
[null,"vārds",null,null,"uzvārds",null,null,"amats"]
[]
[]
[null,"tālrunis",null,null,"e-pasts"]
[null,"Komersanta kontaktpersona (visiem pasākumiem)"]
[]
[]
[null,"vārds",null,null,"uzvārds",null,null,"amats"]
[]
[]
[null,"tālrunis",null,null,"e-pasts"]
[null,"Projekta īstenošanas gaitā nav pieļaujama sākotnēji plānoto sasniedzamo rādītāju samazināšana. "]
[null,"Pirms kapitāla atlaides attiecināšanas tiks veikta sasniegto rādītāju pārbaude, piesaistot neatkarīgus ārējos ekspertus."]
[]
[null,"5.versija"]

{"sheet":"Plānotie pasākumi","index":1,"n_rows":61,"n_cols":15,"rows_kept":61,"cut":false,"hidden":false,"merged":[[41,5,41,9],[42,5,42,9],[43,5,43,9],[38,1,38,3],[39,1,39,3],[40,1,40,3],[41,1,41,3],[1,1,1,13],[5,1,5,13],[30,1,30,13],[28,1,28,13],[9,1,9,2],[16,1,16,2],[17,1,17,2],[18,1,18,2],[19,1,19,2],[9,5,9,9],[16,5,16,9],[17,5,17,9],[18,5,18,9],[19,5,19,9],[14,1,14,2],[7,5,7,9],[49,8,49,12],[49,1,49,3],[47,1,47,3],[24,8,24,12],[25,8,25,12],[26,8,26,12],[42,1,42,3],[32,5,32,9],[43,1,43,3],[44,1,44,3],[35,5,35,9],[36,5,36,9],[37,5,37,9],[38,5,38,9],[39,5,39,9],[40,5,40,9],[60,1,60,12],[57,1,57,12],[58,1,58,12],[51,1,51,3],[50,1,50,3],[50,8,50,12],[51,8,51,12],[55,1,55,12],[56,1,56,12],[14,5,14,9],[15,5,15,9],[7,1,7,2],[22,8,22,12],[8,1,8,13],[10,5,10,9],[11,5,11,9],[12,5,12,9],[13,5,13,9],[20,1,20,10],[15,1,15,2],[48,8,48,12],[23,8,23,12],[47,8,47,12],[10,1,10,2],[11,1,11,2],[12,1,12,2],[13,1,13,2],[44,5,44,9],[45,1,45,10],[32,1,32,3],[34,1,34,3],[35,1,35,3],[37,1,37,3],[36,1,36,3],[33,1,33,13],[34,5,34,9]]}
[null,null,null,null,null,null,null,null,null,null,null,null,null,null,"1"]
[null,"PLĀNOTIE ENERGOEFEKTIVITĀTES (EE) PASĀKUMI\n1.2.1.2.i.1. pasākumā \"Energoefektivitātes paaugstināšana uzņēmējdarbībā (ietverot pāreju uz atjaunojamo energoresursu tehnoloģiju izmantošanu siltumapgādē)\"",null,null,null,null,null,null,null,null,null,null,null,null,1]
[null,null,null,null,null,null,null,null,null,null,null,null,null,null,2]
[null,"A. Aizpilda, ja energoefektivitātes pasākumi tiks īstenoto ēkās",null,null,null,null,null,null,null,null,null,null,null,null,4]
[null,null,null,null,null,null,null,null,null,null,null,null,null,null,5]
[null,"Piezīmes:\n1. Primārās enerģijas patēriņu aprēķinā izmanto kopējo primārās enerģijas patēriņa koeficientu saskaņā ar Ministru kabineta 2021. gada 8. aprīļa noteikumiem Nr. 222 \"Ēku energoefektivitātes aprēķina metodes un ēku energosertifikācijas noteikumi\".\n2. Ja viena projekta ietvaros tiek realizēti gan energoefektivitātes pasākumi ēkās, gan iekārtās, tad jānodrošina, ka ēkās primārās enerģijas ietaupījums ir vismaz 20%, savukārt projektā kopumā - vismaz 30%."]
[]
[null,"Ēkas adrese",null,"Ēkas kadastra apzīmējums","References platība, kvm","Veicamais pasākums energoefektivitātes uzlabošanai atbilstoši Ēkas Energosertifikātam",null,null,null,null,"Kopējais primārās enerģijas ietaupījums kWh/kvm/gadā","Kopējais primārās enerģijas ietaupījums MWh/gadā","CO2 emisijas faktors","Aprēķinātais siltumnīcefekta gāzu emisijas samazinājums, t CO2 ekv./gadā"]
[]
[null,null,null,null,null,null,null,null,null,null,null,{"$f":"K10*E10/1000","v":0}]
[null,null,null,null,null,null,null,null,null,null,null,{"$f":"K11*E11/1000","v":0}]
[null,null,null,null,null,null,null,null,null,null,null,0]
[null,null,null,null,null,null,null,null,null,null,null,0]
[null,null,null,null,null,null,null,null,null,null,null,0]
[null,null,null,null,null,null,null,null,null,null,null,0]
[null,null,null,null,null,null,null,null,null,null,null,0]
[null,null,null,null,null,null,null,null,null,null,null,0]
[null,null,null,null,null,null,null,null,null,null,null,0]
[null,null,null,null,null,null,null,null,null,null,null,0]
[null,null,null,null,null,null,null,null,null,null,null,0]
[null,null,null,null,null,null,null,null,null,null,null,{"$f":"ROUNDDOWN(SUM(L10:L20),2)","v":0},null,{"$f":"ROUNDDOWN(SUM(N10:N20),2)","v":0}]
[]
[null,null,null,null,null,null,null,null,"Kopējais primārās enerģijas patēriņš, MWh gadā PIRMS energoefektivitātes pasākumu īstenošanas"]
[null,null,null,null,null,null,null,null,"Kopējais primārās enerģijas patēriņš, MWh gadā PĒC energoefektivitātes pasākumu īstenošanas"]
[null,null,null,null,null,null,null,null,"Aprēķinātais kopējais primārās enerģijas ietaupījums, MWh gadā",null,null,null,null,{"$f":"L21","v":0}]
[null,null,null,null,null,null,null,null,"Kopējais primārās enerģijas ietaupījums, %",null,null,null,null,{"$f":"IFERROR(ROUNDDOWN(N25/N23,2),0)","v":0}]
[null,null,null,null,null,null,null,null,"Aprēķinātais siltumnīcefekta gāzu emisijas samazinājums, t CO2 ekv./gadā",null,null,null,null,{"$f":"N21","v":0}]
[null,null,null,null,null,null,null,null,null,null,null,null,null,{"$f":"IF(N25>0,IF(N25<>N23-N24,\"Pārbaudiet, vai korekti norādītas vērtības šūnās N23 un N24 - starpība nesakrīt ar šūnā N25 aprēķināto!\",\"\"),\"\")","v":""}]
[null,"B. Aizpilda, ja plānotie energoefektivitātes pasākumi nav saistīti ar ēkām"]
[]
[null,"Piezīmes:\n1. Primārās enerģijas patēriņa aprēķins saskaņā ar Ministru kabineta 2021. gada 8. aprīļa noteikumiem Nr. 222 \"Ēku energoefektivitātes aprēķina metodes un ēku energosertifikācijas noteikumi\n2. Iekārtas jānorāda ar detalizētiem nosaukumiem un jaudām izmantojot tehniskās pases vai iekārtu plāksnītes. Iekārtas var apvienot pa ražošanas vai tehnoloģiskajiem procesiem. Iespējamajam procesu apvienojumam jābūt tehnoloģiski izsekojamam. Nenorāda iekārtas, kuru darbību un energoresursu patēriņu projekta īstenošana neietekmē. "]
[]
[null,"Informācija par iekārtu, kas tiks aizvietota, vai kurā tiks veikti energoefektivitātes uzlabošanas pasākumi",null,null,"Produkcijas vienības / gadā","Veicamais pasākums energoefektivitātes uzlabošanai atbilstoši Energoaudita ziņojumam / Energoaudita pārskatam par veicamajiem pasākumiem",null,null,null,null,"Kopējais primārās enerģijas ietaupījums kWh/produkcijas vien./gadā","Kopējais primārās enerģijas ietaupījums MWh/gadā","CO2 emisijas faktors","Aprēķinātais siltumnīcefekta gāzu emisijas samazinājums, t CO2 ekv./gadā"]
[]
[null,null,null,null,null,null,null,null,null,null,null,{"$f":"K35*E35/1000","v":0}]
[null,null,null,null,null,null,null,null,null,null,null,{"$f":"K36*E36/1000","v":0}]
[null,null,null,null,null,null,null,null,null,null,null,0]
[null,null,null,null,null,null,null,null,null,null,null,0]
[null,null,null,null,null,null,null,null,null,null,null,0]
[null,null,null,null,null,null,null,null,null,null,null,0]
[null,null,null,null,null,null,null,null,null,null,null,0]
[null,null,null,null,null,null,null,null,null,null,null,0]
[null,null,null,null,null,null,null,null,null,null,null,0]
[null,null,null,null,null,null,null,null,null,null,null,0]
[null,null,null,null,null,null,null,null,null,null,null,{"$f":"K45*E45/1000","v":0}]
[null,null,null,null,null,"KOPĀ",{"$f":"SUM(G34:G45)","v":0},null,null,null,null,{"$f":"ROUNDDOWN(SUM(L35:L45),2)","v":0},null,{"$f":"ROUNDDOWN(SUM(N35:N45),2)","v":0}]
[]
[null,null,null,null,null,null,null,null,"Kopējais primārās enerģijas patēriņš, MWh gadā PIRMS energoefektivitātes pasākumu īstenošanas"]
[null,null,null,null,null,null,null,null,"Kopējais primārās enerģijas patēriņš, MWh gadā PĒC energoefektivitātes pasākumu īstenošanas"]
[null,null,null,null,null,null,null,null,"Aprēķinātais kopējais primārās enerģijas ietaupījums, MWh gadā",null,null,null,null,{"$f":"L46","v":0}]
[null,null,null,null,null,null,null,null,"Kopējais primārās enerģijas ietaupījums, %",null,null,null,null,{"$f":"IFERROR(ROUNDDOWN(N50/N48,2),0)","v":0}]
[null,null,null,null,null,null,null,null,"Aprēķinātais siltumnīcefekta gāzu emisijas samazinājums, t CO2 ekv./gadā",null,null,null,null,{"$f":"N46","v":0}]
[null,null,null,null,null,null,null,null,null,null,null,null,null,{"$f":"IF(N50>0,IF(N50<>N48-N49,\"Pārbaudiet, vai korekti norādītas vērtības šūnās N48 un N49 - starpība nesakrīt ar šūnā N50 aprēķināto!\",\"\"),\"\")","v":""}]
[null,"PROJEKTA REZULTĀTI"]
[]
[null,"KOPĒJAIS PRIMĀRĀS ENERĢIJAS IETAUPĪJUMS, %",null,null,null,null,null,null,null,null,null,null,null,{"$f":"IFERROR(ROUNDDOWN((N50+N25)/(N48+N23),2),0)","v":0}]
[null,"KOPĒJAIS PRIMĀRĀS ENERĢIJAS IETAUPĪJUMS, MWh/GADĀ",null,null,null,null,null,null,null,null,null,null,null,{"$f":"N50+N25","v":0}]
[null,"PRIMĀRĀS ENERĢIJAS IETAUPĪJUMS (MWH/ GADĀ) UZ 1000 EURO KAPITĀLA ATLAIDES",null,null,null,null,null,null,null,null,null,null,null,{"$f":"IFERROR(ROUNDDOWN((N57/'Vispārīga informācija'!J12)*1000,2),0)","v":0}]
[null,"PUNKTU SKAITS",null,null,null,null,null,null,null,null,null,null,null,{"$f":"IF(N56<30%,0,\nIF('Sheet2 Slēpt'!A20=3,0,\nIF(N56<30%,0,IF(N58>='Sheet2 Slēpt'!A4,\"6\",IF('Plānotie pasākumi'!N58>='Sheet2 Slēpt'!A5,\"5\",IF(N58>='Sheet2 Slēpt'!A6,\"4\",IF(N58>='Sheet2 Slēpt'!A7,\"3\",IF('Plānotie pasākumi'!N58>='Sheet2 Slēpt'!A8,\"2\",IF('Plānotie pasākumi'!N58<='Sheet2 Slēpt'!A9,\"0\",\"\")))))))))","v":0}]
[]
[null,"5. versija"]

{"sheet":"Iesniedzamie dokumenti EE","index":2,"n_rows":21,"n_cols":6,"rows_kept":21,"cut":false,"hidden":false,"merged":[[5,1,5,5],[7,2,7,3],[7,4,7,5],[1,1,1,5]]}
[]
[null,"IESNIEDZAMIE DOKUMENTI  ENERGOEFEKTIVITĀTES PAAUGSTINĀŠANAS PASĀKUMIEM\n1.2.1.2.i.1. pasākumā \"Energoefektivitātes paaugstināšana uzņēmējdarbībā (ietverot pāreju uz atjaunojamo energoresursu tehnoloģiju izmantošanu siltumapgādē)\""]
[]
[]
[]
[null,"Piezīmes:\nLai saņemtu 4 punktus par Augstu gatavību, pieteikumam jāpievieno visi dokumenti, kas norādīti zem attiecīgā pasākumu veida kolonnā \"Augsta gatavība\".\nLai saņemtu 2 punktus par Vidēju gatavību, pieteikumam jāpievieno dokumenti, kas norādīti zem attiecīgā pasākumu veida kolonnā \"Vidēja gatavība\".\n\nPieteikumam visos gadījumos pievienojami dokumenti, kas netiek vērtēti ar gatavības punktiem: elektroniski parakstīta MVK deklarācija un Projekta izmaksu finansēšanas aprēķins."]
[]
[null,null,"Energoefektivitātes paaugstināšanas pasākumi ēkās",null,"Uz ēkām neattiecināmi energoefektivitātes paaugstināšanas pasākumi "]
[null,"Iesniedzamais dokuments","AUGSTA GATAVĪBA","VIDĒJA GATAVĪBA","AUGSTA GATAVĪBA","VIDĒJA GATAVĪBA"]
[null,"Veidlapa Projekta energoresursu ietaupījuma aprēķins","jāiesniedz","jāiesniedz","jāiesniedz","jāiesniedz"]
[null,"Ēkas energosertifikāts ar pielikumiem, sagatavots saskaņā ar Ministru Kabineta noteikumiem Nr. 222 \"Ēku energoefektivitātes aprēķina metodes un ēku energosertifikācijas noteikumi\"","jāiesniedz","jāiesniedz","--","--"]
[null,"Energoaudita ziņojums iekārtu nomaiņai ar pielikumiem, balstīts pieejā un metodēs, ko paredz  Ministru kabineta noteikumi Nr. 487 “Uzņēmumu energoaudita noteikumi” un Ministru Kabineta noteikumi Nr. 222 \"Ēku energoefektivitātes aprēķina metodes un ēku energosertifikācijas noteikumi\"","--","--","jāiesniedz","jāiesniedz"]
[null,"Projekta izmaksu tāme, ieteicams noformēt saskaņā ar veidlapu “ANM Energoefektivitātes projekta izmaksu tāme”","jāiesniedz","jāiesniedz","jāiesniedz","jāiesniedz"]
[null,"Būvatļauja ar izpildītiem projektēšanas nosacījumiem vai tai līdzvērtīgs dokuments (apliecinājuma karte vai paskaidrojuma raksts), atbilstoši normatīvo aktu prasībām","jāiesniedz","--","jāiesniedz (ja, veicot pasākumus, nepieciešams būvvaldes saskaņojums)","--"]
[null,"Būvprojekts","jāiesniedz","--","jāiesniedz (ja, veicot pasākumus, nepieciešams būvvaldes saskaņojums)","--"]
[null,"Veikto tirgus izpēti pamatojoši dokumenti: 1) vismaz divu piegādātāju / pakalpojumu sniedzēju piedāvājumi; 2) saimnieciski izdevīgākā piedāvājuma izvēles pamatojums.","jāiesniedz","--","jāiesniedz","--"]
[null,"Inženiersistēmu atjaunošanas, pārbūves vai izveides procesa raksturojums, ietverot shematisku attēlojumu, novietojumu telpā, informāciju par izmantojamiem materiāliem, ko izstrādājis atbilstošas jomas speciālists. Ja inženiersistēmu atjaunošanai, pārbūvei vai izveidei nav nepieciešams būvvaldes saskaņojums, tad procesa raksturojumā cita starpā raksturojumā jāietver tam pamatojums.","--","--","jāiesniedz, ja, uzstādot iekārtas tiks veikta inženiersistēmu atjaunošana, pārbūive vai izveide","--"]
[null,"Iekārtu uzstādīšanas / nomaiņas procesa raksturojums,  ietverot shematisku attēlojumu, novietojumu, informāciju par izmantojamiem materiāliem, informāciju par to, kā tiks veikta objektā saražotās / patērētās enerģijas uzskaite. Ja iekārtu uzstādīšanai / nomaiņai nav nepieciešams būvvaldes saskaņojums, tad procesa raksturojumā cita starpā jāietver pamatojums ka, veicot iekārtu uzstādīšanu nomaiņu, nav nepieciešams veikt būvdarbus. Ja tiek uzstādīta elektroenerģiju ražojoša sistēma, jāietver sistēmas ražības simulācija.","--","--","jāiesniedz","--"]
[]
[]
[null,"5.versija"]

{"sheet":"Sheet2 Slēpt","index":3,"n_rows":20,"n_cols":11,"rows_kept":20,"cut":false,"hidden":true,"merged":[]}
["KRITĒRIJI"]
[]
["ENERGOEFEKTIVITĀTE",null,null,"AER",null,null,"transportlīdzekļi",null,null,null,"Pasākumi"]
[2.5,null,null,0.38,null,null,0.42,null,null,null,"Energoefektivitātes paaugstināšanas pasākumi"]
[2,null,null,0.33,null,null,0.37,null,null,null,"Atjaunojamo energoresursu ieviešanas pasākumi"]
[1.5,null,null,0.28000000000000003,null,null,0.32,null,null,null,"Bezemisiju transportlīdzekļu iegāde"]
[1,null,null,0.23,null,null,0.27]
[0.4,null,null,0.18,null,null,0.22]
["0/39",null,null,0.17,null,null,0]
[]
[]
[]
[]
["Pārbaude, vai ēkas ir aizpildītas? Jā \"1\", Nē \"0\""]
[{"$f":"IF('Plānotie pasākumi'!N25>0,1,0)","v":0}]
[]
[]
[]
["Pārbaude, vai tikai ēkās ir vismaz 20% EE ietaupījums, ja tās ir aizpildītas. Jā \"2\", Nē \"3\""]
[{"$f":"IF(A15=1,IF('Plānotie pasākumi'!N26<20%,3,2))","v":false}]